[Event "Titled Tuesday Blitz March 22 Early 2022"]
[White "Horcajuelo Rocamora, Martin"]
[Black "Lauridsen, Jesper Morch"]
[WhiteFideId "24573027"]
[BlackFideId "1401890"]
[WhiteElo "1706"]
[BlackElo "2234"]
[Result "0-1"]
[Round "08"]
[TimeControl "180+1"]
[Date "2022.03.22"]
[WhiteClock "0:00:34"]
[BlackClock "0:00:46"]

1. e4 {[%clk 0:03:00]}  e6 {[%clk 0:02:58]} 2. d4 {[%clk 0:02:58]}  d5 {[%clk 0:02:57]} 3. Nc3 {[%clk 0:02:58]}  dxe4 {[%clk 0:02:57]} 4. Nxe4 {[%clk 0:02:53]}  Nd7 {[%clk 0:02:58]} 5. Nf3 {[%clk 0:02:51]}  Ngf6 {[%clk 0:02:58]} 6. Bg5 {[%clk 0:02:50]}  h6 {[%clk 0:02:56]} 7. Bxf6 {[%clk 0:02:31]}  Nxf6 {[%clk 0:02:56]} 8. Bd3 {[%clk 0:02:31]}  Be7 {[%clk 0:02:02]} 9. O-O {[%clk 0:02:21]}  O-O {[%clk 0:02:01]} 10. Qe2 {[%clk 0:02:21]}  Rb8 {[%clk 0:01:52]} 11. Rad1 {[%clk 0:02:17]}  b6 {[%clk 0:01:47]} 12. Ne5 {[%clk 0:02:12]}  Bb7 {[%clk 0:01:45]} 13. c3 {[%clk 0:02:10]}  Qd5 {[%clk 0:01:38]} 14. f3 {[%clk 0:01:50]}  Rbd8 {[%clk 0:01:34]} 15. Nxf6+ {[%clk 0:01:39]}  Bxf6 {[%clk 0:01:31]} 16. Be4 {[%clk 0:01:39]}  Qxa2 {[%clk 0:01:16]} 17. Bxb7 {[%clk 0:01:38]}  c5 {[%clk 0:01:15]} 18. dxc5 {[%clk 0:01:35]}  Rxd1 {[%clk 0:01:14]} 19. Rxd1 {[%clk 0:01:36]}  Bxe5 {[%clk 0:01:10]} 20. Qxe5 {[%clk 0:01:35]}  Qxb2 {[%clk 0:01:10]} 21. cxb6 {[%clk 0:01:34]}  Qxb6+ {[%clk 0:01:10]} 22. Kh1 {[%clk 0:01:24]}  Qxb7 {[%clk 0:01:10]} 23. h4 {[%clk 0:01:20]}  Rc8 {[%clk 0:01:07]} 24. Rd4 {[%clk 0:01:19]}  Qc7 {[%clk 0:01:02]} 25. Qe3 {[%clk 0:00:54]}  Qxc3 {[%clk 0:00:58]} 26. Rd8+ {[%clk 0:00:53]}  Kh7 {[%clk 0:00:58]} 27. Qe4+ {[%clk 0:00:53]}  f5 {[%clk 0:00:50]} 28. Rxc8 {[%clk 0:00:34]}  Qa1+ {[%clk 0:00:46]} 0-1


[Site "https://www.chess.com"]

[Event "Titled Tuesday Blitz March 22 Early 2022"]
[White "Ianov, Viktor"]
[Black "Begunov, Konstantin"]
[WhiteFideId "14102730"]
[BlackFideId "4118510"]
[WhiteElo "2161"]
[BlackElo "2262"]
[Result "0-1"]
[Round "08"]
[TimeControl "180+1"]
[Date "2022.03.22"]
[WhiteClock "0:00:38"]
[BlackClock "0:00:13"]

1. Nf3 {[%clk 0:03:00]}  d5 {[%clk 0:02:59]} 2. g3 {[%clk 0:03:00]}  c6 {[%clk 0:03:00]} 3. Bg2 {[%clk 0:03:00]}  Bg4 {[%clk 0:03:00]} 4. O-O {[%clk 0:03:00]}  Nd7 {[%clk 0:03:00]} 5. d3 {[%clk 0:03:00]}  e5 {[%clk 0:03:00]} 6. Nbd2 {[%clk 0:03:00]}  Ngf6 {[%clk 0:03:00]} 7. e4 {[%clk 0:03:00]}  dxe4 {[%clk 0:03:00]} 8. dxe4 {[%clk 0:02:59]}  Bc5 {[%clk 0:03:00]} 9. h3 {[%clk 0:02:59]}  Bh5 {[%clk 0:03:00]} 10. Qe1 {[%clk 0:02:57]}  Qe7 {[%clk 0:03:00]} 11. Nc4 {[%clk 0:02:57]}  O-O {[%clk 0:02:54]} 12. a4 {[%clk 0:02:56]}  Rfd8 {[%clk 0:02:46]} 13. Bg5 {[%clk 0:02:56]}  Bxf3 {[%clk 0:02:28]} 14. Bxf3 {[%clk 0:02:55]}  Nb6 {[%clk 0:02:20]} 15. Ne3 {[%clk 0:02:45]}  Bxe3 {[%clk 0:02:19]} 16. Bxe3 {[%clk 0:02:35]}  Nc4 {[%clk 0:02:17]} 17. Bc1 {[%clk 0:02:35]}  Qd7 {[%clk 0:01:39]} 18. Qc3 {[%clk 0:02:31]}  Nd2 {[%clk 0:01:27]} 19. Bxd2 {[%clk 0:02:21]}  Qxd2 {[%clk 0:01:28]} 20. Qxe5 {[%clk 0:02:13]}  Qxc2 {[%clk 0:01:27]} 21. Rfe1 {[%clk 0:02:01]}  Qb3 {[%clk 0:01:19]} 22. Re3 {[%clk 0:01:58]}  Qb4 {[%clk 0:01:10]} 23. Qc3 {[%clk 0:01:52]}  a5 {[%clk 0:01:02]} 24. Qxb4 {[%clk 0:01:45]}  axb4 {[%clk 0:01:01]} 25. Rb3 {[%clk 0:01:45]}  Rd4 {[%clk 0:00:54]} 26. e5 {[%clk 0:01:41]}  Nd5 {[%clk 0:00:43]} 27. a5 {[%clk 0:01:34]}  Nc7 {[%clk 0:00:32]} 28. Rd1 {[%clk 0:01:18]}  Rad8 {[%clk 0:00:28]} 29. Rxd4 {[%clk 0:01:15]}  Rxd4 {[%clk 0:00:29]} 30. Bg4 {[%clk 0:01:11]}  Ne6 {[%clk 0:00:23]} 31. f4 {[%clk 0:01:07]}  Nc5 {[%clk 0:00:20]} 32. Re3 {[%clk 0:01:06]}  Na4 {[%clk 0:00:19]} 33. b3 {[%clk 0:01:05]}  Nc3 {[%clk 0:00:20]} 34. Bc8 {[%clk 0:01:03]}  Nd5 {[%clk 0:00:14]} 35. Rf3 {[%clk 0:01:03]}  b6 {[%clk 0:00:14]} 36. a6 {[%clk 0:01:02]}  Rd1+ {[%clk 0:00:14]} 37. Kf2 {[%clk 0:01:01]}  Ra1 {[%clk 0:00:15]} 38. Bb7 {[%clk 0:01:01]}  Nc3 {[%clk 0:00:12]} 39. Rd3 {[%clk 0:01:00]}  Kf8 {[%clk 0:00:12]} 40. Rd7 {[%clk 0:00:58]}  c5 {[%clk 0:00:10]} 41. Ke3 {[%clk 0:00:58]}  c4 {[%clk 0:00:10]} 42. bxc4 {[%clk 0:00:55]}  b3 {[%clk 0:00:11]} 43. Rd2 {[%clk 0:00:53]}  b2 {[%clk 0:00:11]} 44. Rxb2 {[%clk 0:00:53]}  Nd1+ {[%clk 0:00:11]} 45. Kd4 {[%clk 0:00:53]}  Nxb2 {[%clk 0:00:12]} 46. Kd5 {[%clk 0:00:54]}  Ke7 {[%clk 0:00:12]} 47. f5 {[%clk 0:00:53]}  Kd7 {[%clk 0:00:12]} 48. g4 {[%clk 0:00:53]}  Kc7 {[%clk 0:00:11]} 49. e6 {[%clk 0:00:54]}  Rd1+ {[%clk 0:00:12]} 50. Ke5 {[%clk 0:00:53]}  Nxc4+ {[%clk 0:00:12]} 51. Kf4 {[%clk 0:00:53]}  fxe6 {[%clk 0:00:12]} 52. fxe6 {[%clk 0:00:53]}  Re1 {[%clk 0:00:11]} 53. Be4 {[%clk 0:00:51]}  Nd6 {[%clk 0:00:11]} 54. Bd5 {[%clk 0:00:52]}  Nb5 {[%clk 0:00:09]} 55. g5 {[%clk 0:00:49]}  Kd6 {[%clk 0:00:09]} 56. Bc4 {[%clk 0:00:47]}  Na7 {[%clk 0:00:09]} 57. h4 {[%clk 0:00:46]}  b5 {[%clk 0:00:09]} 58. Bb3 {[%clk 0:00:44]}  b4 {[%clk 0:00:09]} 59. h5 {[%clk 0:00:44]}  Rxe6 {[%clk 0:00:10]} 60. Bxe6 {[%clk 0:00:43]}  Kxe6 {[%clk 0:00:10]} 61. Ke3 {[%clk 0:00:43]}  Ke5 {[%clk 0:00:10]} 62. Kd3 {[%clk 0:00:42]}  Kd5 {[%clk 0:00:11]} 63. g6 {[%clk 0:00:41]}  h6 {[%clk 0:00:11]} 64. Kc2 {[%clk 0:00:41]}  Kc4 {[%clk 0:00:11]} 65. Kb2 {[%clk 0:00:41]}  b3 {[%clk 0:00:11]} 66. Kb1 {[%clk 0:00:40]}  Kb4 {[%clk 0:00:12]} 67. Kb2 {[%clk 0:00:40]}  Kc4 {[%clk 0:00:12]} 68. Kb1 {[%clk 0:00:39]}  Kc3 {[%clk 0:00:13]} 69. Kc1 {[%clk 0:00:40]}  Nb5 {[%clk 0:00:12]} 70. Kb1 {[%clk 0:00:39]}  b2 {[%clk 0:00:13]} 71. Ka2 {[%clk 0:00:38]}  Kc2 {[%clk 0:00:13]} 0-1


[Site "https://www.chess.com"]

[Event "Titled Tuesday Blitz March 22 Early 2022"]
[White "Indjic, Aleksandar"]
[Black "Shuvalova, Polina"]
[WhiteFideId "911925"]
[BlackFideId "24171760"]
[WhiteElo "2616"]
[BlackElo "2355"]
[Result "0-1"]
[Round "08"]
[TimeControl "180+1"]
[Date "2022.03.22"]
[WhiteClock "0:00:04"]
[BlackClock "0:00:07"]

1. d4 {[%clk 0:03:00]}  Nf6 {[%clk 0:02:59]} 2. Nf3 {[%clk 0:03:01]}  d5 {[%clk 0:02:59]} 3. Bf4 {[%clk 0:03:00]}  e6 {[%clk 0:02:58]} 4. e3 {[%clk 0:03:00]}  Bd6 {[%clk 0:02:59]} 5. Nbd2 {[%clk 0:03:00]}  O-O {[%clk 0:02:57]} 6. Bd3 {[%clk 0:02:54]}  Bxf4 {[%clk 0:02:57]} 7. exf4 {[%clk 0:02:53]}  b6 {[%clk 0:02:56]} 8. h4 {[%clk 0:02:48]}  Ba6 {[%clk 0:02:53]} 9. Bxa6 {[%clk 0:02:47]}  Nxa6 {[%clk 0:02:54]} 10. c3 {[%clk 0:02:47]}  c5 {[%clk 0:02:53]} 11. Qe2 {[%clk 0:02:47]}  Nc7 {[%clk 0:02:53]} 12. h5 {[%clk 0:02:46]}  h6 {[%clk 0:02:53]} 13. Ne5 {[%clk 0:02:46]}  cxd4 {[%clk 0:02:50]} 14. cxd4 {[%clk 0:02:46]}  Qe8 {[%clk 0:02:39]} 15. g4 {[%clk 0:02:33]}  Qb5 {[%clk 0:02:37]} 16. g5 {[%clk 0:02:32]}  Ne4 {[%clk 0:02:31]} 17. Ndf3 {[%clk 0:02:03]}  Rac8 {[%clk 0:02:05]} 18. Rc1 {[%clk 0:01:51]}  Qb4+ {[%clk 0:01:47]} 19. Kf1 {[%clk 0:01:49]}  Nb5 {[%clk 0:01:47]} 20. Rxc8 {[%clk 0:01:41]}  Rxc8 {[%clk 0:01:48]} 21. Kg2 {[%clk 0:01:13]}  Nxd4 {[%clk 0:01:42]} 22. Nxd4 {[%clk 0:01:12]}  Qxd4 {[%clk 0:01:42]} 23. Rd1 {[%clk 0:01:12]}  Qb4 {[%clk 0:01:33]} 24. gxh6 {[%clk 0:01:05]}  Nf6 {[%clk 0:01:22]} 25. Qf3 {[%clk 0:00:27]}  gxh6 {[%clk 0:01:14]} 26. Kh2 {[%clk 0:00:27]}  Kf8 {[%clk 0:01:11]} 27. Rg1 {[%clk 0:00:14]}  Qe4 {[%clk 0:00:57]} 28. Qg3 {[%clk 0:00:14]}  Qf5 {[%clk 0:00:57]} 29. Qh4 {[%clk 0:00:09]}  Qxh5 {[%clk 0:00:49]} 30. Kh3 {[%clk 0:00:05]}  Qxh4+ {[%clk 0:00:44]} 31. Kxh4 {[%clk 0:00:06]}  Rc2 {[%clk 0:00:44]} 32. f3 {[%clk 0:00:05]}  Rh2+ {[%clk 0:00:42]} 33. Kg3 {[%clk 0:00:05]}  Rxb2 {[%clk 0:00:43]} 34. Rc1 {[%clk 0:00:05]}  Nh5+ {[%clk 0:00:34]} 35. Kg4 {[%clk 0:00:05]}  Nf6+ {[%clk 0:00:29]} 36. Kg3 {[%clk 0:00:05]}  Ne8 {[%clk 0:00:27]} 37. Rc8 {[%clk 0:00:04]}  Rxa2 {[%clk 0:00:22]} 38. f5 {[%clk 0:00:05]}  exf5 {[%clk 0:00:21]} 39. Rb8 {[%clk 0:00:05]}  Re2 {[%clk 0:00:21]} 40. Kf4 {[%clk 0:00:05]}  Ke7 {[%clk 0:00:20]} 41. Rb7+ {[%clk 0:00:05]}  Kf6 {[%clk 0:00:20]} 42. Nd7+ {[%clk 0:00:04]}  Kg7 {[%clk 0:00:19]} 43. Ne5 {[%clk 0:00:04]}  Nd6 {[%clk 0:00:20]} 44. Rd7 {[%clk 0:00:05]}  Nc4 {[%clk 0:00:19]} 45. Nxf7 {[%clk 0:00:05]}  Kg6 {[%clk 0:00:16]} 46. Nh8+ {[%clk 0:00:05]}  Kf6 {[%clk 0:00:14]} 47. Rf7+ {[%clk 0:00:04]}  Ke6 {[%clk 0:00:15]} 48. Rxa7 {[%clk 0:00:04]}  Kd6 {[%clk 0:00:13]} 49. Kxf5 {[%clk 0:00:04]}  Rf2 {[%clk 0:00:13]} 50. f4 {[%clk 0:00:04]}  Ne3+ {[%clk 0:00:13]} 51. Kg6 {[%clk 0:00:04]}  Rxf4 {[%clk 0:00:14]} 52. Nf7+ {[%clk 0:00:04]}  Kc5 {[%clk 0:00:13]} 53. Nd8 {[%clk 0:00:04]}  Re4 {[%clk 0:00:11]} 54. Kf6 {[%clk 0:00:04]}  Ng4+ {[%clk 0:00:11]} 55. Kf5 {[%clk 0:00:04]}  Ne3+ {[%clk 0:00:10]} 56. Kf6 {[%clk 0:00:04]}  Nc4 {[%clk 0:00:11]} 57. Ne6+ {[%clk 0:00:04]}  Kd6 {[%clk 0:00:11]} 58. Ng7 {[%clk 0:00:03]}  Rf4+ {[%clk 0:00:11]} 59. Nf5+ {[%clk 0:00:03]}  Kc5 {[%clk 0:00:10]} 60. Ke6 {[%clk 0:00:04]}  Re4+ {[%clk 0:00:10]} 61. Kf6 {[%clk 0:00:04]}  b5 {[%clk 0:00:10]} 62. Rc7+ {[%clk 0:00:04]}  Kb4 {[%clk 0:00:10]} 63. Ne7 {[%clk 0:00:04]}  Ne3 {[%clk 0:00:08]} 64. Rd7 {[%clk 0:00:04]}  Kc4 {[%clk 0:00:08]} 65. Rc7+ {[%clk 0:00:04]}  Kb4 {[%clk 0:00:08]} 66. Nc6+ {[%clk 0:00:04]}  Kb3 {[%clk 0:00:06]} 67. Ne5 {[%clk 0:00:03]}  Ng4+ {[%clk 0:00:06]} 68. Nxg4 {[%clk 0:00:03]}  Rxg4 {[%clk 0:00:07]} 69. Rc5 {[%clk 0:00:04]}  b4 {[%clk 0:00:07]} 70. Rxd5 {[%clk 0:00:04]}  Re4 {[%clk 0:00:05]} 71. Rd1 {[%clk 0:00:04]}  Re2 {[%clk 0:00:05]} 72. Rb1+ {[%clk 0:00:04]}  Kc3 {[%clk 0:00:06]} 73. Rc1+ {[%clk 0:00:04]}  Kb2 {[%clk 0:00:06]} 74. Rc8 {[%clk 0:00:03]}  b3 {[%clk 0:00:07]} 75. Kg6 {[%clk 0:00:04]}  Kb1 {[%clk 0:00:07]} 76. Kxh6 {[%clk 0:00:04]}  b2 {[%clk 0:00:08]} 77. Kg5 {[%clk 0:00:04]}  Rc2 {[%clk 0:00:07]} 78. Rf8 {[%clk 0:00:04]}  Kc1 {[%clk 0:00:06]} 79. Rf1+ {[%clk 0:00:04]}  Kd2 {[%clk 0:00:07]} 80. Rb1 {[%clk 0:00:03]}  Kc3 {[%clk 0:00:07]} 81. Kf4 {[%clk 0:00:04]}  Rc1 {[%clk 0:00:07]} 0-1


[Site "https://www.chess.com"]

[Event "Titled Tuesday Blitz March 22 Early 2022"]
[White "Janaszak, Dawid"]
[Black "Dushyant Sharma"]
[WhiteFideId "1119206"]
[BlackFideId "25065130"]
[WhiteElo "2199"]
[BlackElo "2105"]
[Result "1-0"]
[Round "08"]
[TimeControl "180+1"]
[Date "2022.03.22"]
[WhiteClock "0:00:39"]
[BlackClock "0:00:06"]

1. d4 {[%clk 0:03:00]}  d5 {[%clk 0:03:00]} 2. Bf4 {[%clk 0:03:00]}  e6 {[%clk 0:03:00]} 3. e3 {[%clk 0:02:57]}  f5 {[%clk 0:03:00]} 4. h3 {[%clk 0:02:54]}  Nf6 {[%clk 0:03:00]} 5. g4 {[%clk 0:02:54]}  Bd6 {[%clk 0:03:00]} 6. Ne2 {[%clk 0:02:42]}  O-O {[%clk 0:02:45]} 7. gxf5 {[%clk 0:02:41]}  exf5 {[%clk 0:02:45]} 8. Nbc3 {[%clk 0:02:39]}  c6 {[%clk 0:02:44]} 9. Qd3 {[%clk 0:02:36]}  Ne4 {[%clk 0:02:43]} 10. Bxd6 {[%clk 0:02:31]}  Qxd6 {[%clk 0:02:43]} 11. f3 {[%clk 0:02:30]}  Nf6 {[%clk 0:02:12]} 12. O-O-O {[%clk 0:02:29]}  b5 {[%clk 0:02:12]} 13. Nf4 {[%clk 0:02:28]}  a5 {[%clk 0:02:12]} 14. Rg1 {[%clk 0:02:22]}  a4 {[%clk 0:02:12]} 15. Nce2 {[%clk 0:02:13]}  b4 {[%clk 0:02:09]} 16. Ng3 {[%clk 0:02:12]}  b3 {[%clk 0:02:08]} 17. cxb3 {[%clk 0:02:11]}  axb3 {[%clk 0:02:09]} 18. a3 {[%clk 0:02:11]}  Re8 {[%clk 0:01:40]} 19. Nxf5 {[%clk 0:02:03]}  Bxf5 {[%clk 0:01:29]} 20. Qxf5 {[%clk 0:02:04]}  Rxe3 {[%clk 0:01:25]} 21. Bd3 {[%clk 0:01:53]}  Nbd7 {[%clk 0:01:01]} 22. Nh5 {[%clk 0:01:33]}  g6 {[%clk 0:00:39]} 23. Rxg6+ {[%clk 0:01:32]}  hxg6 {[%clk 0:00:40]} 24. Qxg6+ {[%clk 0:01:32]}  Kf8 {[%clk 0:00:41]} 25. Qh6+ {[%clk 0:01:23]}  Kf7 {[%clk 0:00:28]} 26. Bg6+ {[%clk 0:01:15]}  Ke7 {[%clk 0:00:28]} 27. Qxe3+ {[%clk 0:01:15]}  Qe6 {[%clk 0:00:28]} 28. Qxe6+ {[%clk 0:01:08]}  Kxe6 {[%clk 0:00:29]} 29. Nf4+ {[%clk 0:01:08]}  Kd6 {[%clk 0:00:29]} 30. h4 {[%clk 0:01:09]}  c5 {[%clk 0:00:19]} 31. dxc5+ {[%clk 0:01:05]}  Kxc5 {[%clk 0:00:20]} 32. Nxd5 {[%clk 0:01:02]}  Rc8 {[%clk 0:00:15]} 33. Nc3 {[%clk 0:00:58]}  Ne5 {[%clk 0:00:14]} 34. Bf5 {[%clk 0:00:49]}  Rf8 {[%clk 0:00:13]} 35. Ne4+ {[%clk 0:00:48]}  Nxe4 {[%clk 0:00:13]} 36. fxe4 {[%clk 0:00:49]}  Rh8 {[%clk 0:00:12]} 37. Rd5+ {[%clk 0:00:49]}  Kc4 {[%clk 0:00:12]} 38. Rxe5 {[%clk 0:00:48]}  Rxh4 {[%clk 0:00:13]} 39. Be6+ {[%clk 0:00:45]}  Kd3 {[%clk 0:00:11]} 40. Bxb3 {[%clk 0:00:42]}  Rh1+ {[%clk 0:00:07]} 41. Bd1 {[%clk 0:00:42]}  Rh7 {[%clk 0:00:07]} 42. Rd5+ {[%clk 0:00:40]}  Ke3 {[%clk 0:00:06]} 43. e5 {[%clk 0:00:40]}  Rc7+ {[%clk 0:00:07]} 44. Kb1 {[%clk 0:00:39]}  Ke4 {[%clk 0:00:06]} 45. Bb3 {[%clk 0:00:39]} 1-0


[Site "https://www.chess.com"]

[Event "Titled Tuesday Blitz March 22 Early 2022"]
[White "Johnson, Ben"]
[Black "Rostovtsev, Dmitry"]
[WhiteFideId "2010917"]
[BlackFideId "34278320"]
[WhiteElo "2224"]
[BlackElo "2359"]
[Result "0-1"]
[Round "08"]
[TimeControl "180+1"]
[Date "2022.03.22"]
[WhiteClock "0:00:01"]
[BlackClock "0:00:27"]

1. Nf3 {[%clk 0:02:59]}  Nf6 {[%clk 0:02:57]} 2. c4 {[%clk 0:02:58]}  g6 {[%clk 0:02:57]} 3. b3 {[%clk 0:02:58]}  d6 {[%clk 0:02:57]} 4. d4 {[%clk 0:02:56]}  Bg7 {[%clk 0:02:57]} 5. Bb2 {[%clk 0:02:52]}  O-O {[%clk 0:02:55]} 6. g3 {[%clk 0:02:49]}  Nfd7 {[%clk 0:02:53]} 7. Bg2 {[%clk 0:02:44]}  e5 {[%clk 0:02:51]} 8. e3 {[%clk 0:02:36]}  Nc6 {[%clk 0:02:45]} 9. O-O {[%clk 0:02:28]}  f5 {[%clk 0:02:41]} 10. dxe5 {[%clk 0:02:17]}  Ndxe5 {[%clk 0:02:30]} 11. Nxe5 {[%clk 0:02:11]}  Nxe5 {[%clk 0:02:31]} 12. f4 {[%clk 0:01:44]}  Nf3+ {[%clk 0:02:30]} 13. Bxf3 {[%clk 0:01:37]}  Bxb2 {[%clk 0:02:30]} 14. Nd2 {[%clk 0:01:38]}  Bxa1 {[%clk 0:02:30]} 15. Qxa1 {[%clk 0:01:37]}  Qf6 {[%clk 0:02:30]} 16. Qc1 {[%clk 0:01:28]}  c6 {[%clk 0:02:30]} 17. e4 {[%clk 0:01:27]}  fxe4 {[%clk 0:02:29]} 18. Nxe4 {[%clk 0:01:24]}  Qe7 {[%clk 0:02:29]} 19. Rd1 {[%clk 0:01:18]}  Bf5 {[%clk 0:02:22]} 20. Nxd6 {[%clk 0:01:06]}  Rfd8 {[%clk 0:02:18]} 21. Nxf5 {[%clk 0:00:59]}  Rxd1+ {[%clk 0:02:16]} 22. Qxd1 {[%clk 0:00:59]}  gxf5 {[%clk 0:02:16]} 23. Qc2 {[%clk 0:00:35]}  Qe6 {[%clk 0:02:09]} 24. Kg2 {[%clk 0:00:28]}  Rd8 {[%clk 0:01:25]} 25. c5 {[%clk 0:00:27]}  Qf6 {[%clk 0:01:14]} 26. b4 {[%clk 0:00:16]}  a6 {[%clk 0:01:13]} 27. a4 {[%clk 0:00:15]}  Kg7 {[%clk 0:01:05]} 28. b5 {[%clk 0:00:13]}  axb5 {[%clk 0:01:05]} 29. axb5 {[%clk 0:00:13]}  Rd7 {[%clk 0:00:54]} 30. bxc6 {[%clk 0:00:11]}  bxc6 {[%clk 0:00:55]} 31. h4 {[%clk 0:00:09]}  Kh8 {[%clk 0:00:49]} 32. Qb3 {[%clk 0:00:04]}  Rd2+ {[%clk 0:00:43]} 33. Kh3 {[%clk 0:00:05]}  Qb2 {[%clk 0:00:34]} 34. Qxb2+ {[%clk 0:00:02]}  Rxb2 {[%clk 0:00:35]} 35. Bxc6 {[%clk 0:00:02]}  Rc2 {[%clk 0:00:35]} 36. Bd7 {[%clk 0:00:02]}  Rxc5 {[%clk 0:00:35]} 37. g4 {[%clk 0:00:02]}  fxg4+ {[%clk 0:00:33]} 38. Kxg4 {[%clk 0:00:02]}  Kg7 {[%clk 0:00:34]} 39. h5 {[%clk 0:00:03]}  Kf6 {[%clk 0:00:33]} 40. Ba4 {[%clk 0:00:02]}  h6 {[%clk 0:00:32]} 41. Bb3 {[%clk 0:00:02]}  Rc1 {[%clk 0:00:30]} 42. Ba2 {[%clk 0:00:02]}  Rg1+ {[%clk 0:00:29]} 43. Kh4 {[%clk 0:00:02]}  Kf5 {[%clk 0:00:28]} 44. Bb3 {[%clk 0:00:01]}  Kxf4 {[%clk 0:00:27]} 45. Bf7 {[%clk 0:00:01]}  Rh1# {[%clk 0:00:27]} 0-1


[Site "https://www.chess.com"]

[Event "Titled Tuesday Blitz March 22 Early 2022"]
[White "Kanyamarala, Tarun"]
[Black "Hoffmann, Asa"]
[WhiteFideId "45004714"]
[BlackFideId "2001470"]
[WhiteElo "2075"]
[BlackElo "2117"]
[Result "1-0"]
[Round "08"]
[TimeControl "180+1"]
[Date "2022.03.22"]
[WhiteClock "0:01:20"]
[BlackClock "0:00:51"]

1. Nf3 {[%clk 0:03:00]}  d6 {[%clk 0:02:57]} 2. d4 {[%clk 0:02:58]}  Bg4 {[%clk 0:02:56]} 3. c4 {[%clk 0:02:56]}  Nd7 {[%clk 0:02:55]} 4. g3 {[%clk 0:02:56]}  Bxf3 {[%clk 0:02:53]} 5. exf3 {[%clk 0:02:57]}  c6 {[%clk 0:02:53]} 6. Bg2 {[%clk 0:02:57]}  g6 {[%clk 0:02:53]} 7. O-O {[%clk 0:02:57]}  Bg7 {[%clk 0:02:53]} 8. Nc3 {[%clk 0:02:58]}  e6 {[%clk 0:02:53]} 9. Ne4 {[%clk 0:02:55]}  Qe7 {[%clk 0:02:49]} 10. Bf4 {[%clk 0:02:49]}  e5 {[%clk 0:02:42]} 11. dxe5 {[%clk 0:02:49]}  dxe5 {[%clk 0:02:40]} 12. Nd6+ {[%clk 0:02:49]}  Kf8 {[%clk 0:02:40]} 13. Be3 {[%clk 0:02:45]}  b6 {[%clk 0:02:32]} 14. f4 {[%clk 0:02:39]}  Rd8 {[%clk 0:02:29]} 15. Nb7 {[%clk 0:02:30]}  Rc8 {[%clk 0:02:21]} 16. Qa4 {[%clk 0:02:24]}  Nb8 {[%clk 0:02:03]} 17. Qxa7 {[%clk 0:02:17]}  Nf6 {[%clk 0:01:50]} 18. Bxb6 {[%clk 0:02:07]}  Nfd7 {[%clk 0:01:41]} 19. Bh3 {[%clk 0:01:58]}  exf4 {[%clk 0:01:37]} 20. Rad1 {[%clk 0:01:51]}  f5 {[%clk 0:01:32]} 21. Rfe1 {[%clk 0:01:46]}  Be5 {[%clk 0:01:27]} 22. gxf4 {[%clk 0:01:44]}  Kg7 {[%clk 0:01:23]} 23. fxe5 {[%clk 0:01:41]}  Qh4 {[%clk 0:01:18]} 24. Bg2 {[%clk 0:01:38]}  f4 {[%clk 0:01:15]} 25. f3 {[%clk 0:01:28]}  Rhe8 {[%clk 0:01:02]} 26. e6 {[%clk 0:01:27]}  Nxb6 {[%clk 0:01:00]} 27. Qxb6 {[%clk 0:01:27]}  Nd7 {[%clk 0:00:51]} 28. Rxd7+ {[%clk 0:01:23]}  Kh6 {[%clk 0:00:51]} 29. Qf2 {[%clk 0:01:20]} 1-0


[Site "https://www.chess.com"]

[Event "Titled Tuesday Blitz March 22 Early 2022"]
[White "Khamzin, Olzhas"]
[Black "Timofeev, Artyom"]
[WhiteFideId "13701690"]
[BlackFideId "4140419"]
[WhiteElo "2194"]
[BlackElo "2594"]
[Result "0-1"]
[Round "08"]
[TimeControl "180+1"]
[Date "2022.03.22"]
[WhiteClock "0:02:50"]
[BlackClock "0:02:51"]

1. d4 {[%clk 0:03:00]}  d5 {[%clk 0:02:59]} 2. Nc3 {[%clk 0:03:01]}  Nf6 {[%clk 0:02:58]} 3. Bg5 {[%clk 0:03:02]}  g6 {[%clk 0:02:58]} 4. e3 {[%clk 0:03:02]}  Bg7 {[%clk 0:02:58]} 5. Nf3 {[%clk 0:02:59]}  O-O {[%clk 0:02:58]} 6. h4 {[%clk 0:02:59]}  Bg4 {[%clk 0:02:57]} 7. Be2 {[%clk 0:02:59]}  c5 {[%clk 0:02:57]} 8. Ne5 {[%clk 0:02:59]}  Bxe2 {[%clk 0:02:56]} 9. Qxe2 {[%clk 0:02:59]}  Nc6 {[%clk 0:02:57]} 10. e4 {[%clk 0:02:59]}  cxd4 {[%clk 0:02:52]} 11. Nxd5 {[%clk 0:02:50]}  Nxe5 {[%clk 0:02:51]} 0-1


[Site "https://www.chess.com"]

[Event "Titled Tuesday Blitz March 22 Early 2022"]
[White "Koridze, Lile"]
[Black "Estrada Nieto, Julian"]
[WhiteFideId "13612514"]
[BlackFideId "5101018"]
[WhiteElo "1999"]
[BlackElo "2246"]
[Result "1-0"]
[Round "08"]
[TimeControl "180+1"]
[Date "2022.03.22"]
[WhiteClock "0:01:20"]
[BlackClock "0:00:06"]

1. d4 {[%clk 0:03:00]}  d5 {[%clk 0:02:59]} 2. c4 {[%clk 0:03:01]}  dxc4 {[%clk 0:02:59]} 3. Nc3 {[%clk 0:03:01]}  a6 {[%clk 0:02:58]} 4. a4 {[%clk 0:03:01]}  Nc6 {[%clk 0:02:58]} 5. e3 {[%clk 0:03:01]}  Na5 {[%clk 0:02:58]} 6. Nf3 {[%clk 0:03:01]}  Nf6 {[%clk 0:02:58]} 7. Ne5 {[%clk 0:03:01]}  Be6 {[%clk 0:02:58]} 8. Be2 {[%clk 0:03:01]}  g6 {[%clk 0:02:58]} 9. O-O {[%clk 0:03:00]}  Bg7 {[%clk 0:02:59]} 10. Bf3 {[%clk 0:02:55]}  O-O {[%clk 0:02:56]} 11. e4 {[%clk 0:02:44]}  c6 {[%clk 0:02:45]} 12. Be3 {[%clk 0:02:41]}  Nd7 {[%clk 0:02:38]} 13. Ng4 {[%clk 0:02:35]}  Nb3 {[%clk 0:02:28]} 14. Rb1 {[%clk 0:02:34]}  Bxg4 {[%clk 0:02:26]} 15. Bxg4 {[%clk 0:02:34]}  e5 {[%clk 0:02:17]} 16. d5 {[%clk 0:02:22]}  Nf6 {[%clk 0:02:10]} 17. Be2 {[%clk 0:02:19]}  cxd5 {[%clk 0:02:09]} 18. exd5 {[%clk 0:02:19]}  Rc8 {[%clk 0:01:53]} 19. Bxc4 {[%clk 0:02:19]}  Rxc4 {[%clk 0:01:53]} 20. Qxb3 {[%clk 0:02:18]}  Qc8 {[%clk 0:01:43]} 21. h3 {[%clk 0:02:11]}  Rd8 {[%clk 0:01:42]} 22. Rfd1 {[%clk 0:02:11]}  Bf8 {[%clk 0:01:28]} 23. Bg5 {[%clk 0:02:03]}  Rb4 {[%clk 0:01:15]} 24. Qa2 {[%clk 0:02:00]}  Rd6 {[%clk 0:01:14]} 25. Rd3 {[%clk 0:01:50]}  Qf5 {[%clk 0:01:13]} 26. Rg3 {[%clk 0:01:38]}  Nxd5 {[%clk 0:01:11]} 27. Nxd5 {[%clk 0:01:31]}  Rxd5 {[%clk 0:01:06]} 28. Qxd5 {[%clk 0:01:29]}  Qxb1+ {[%clk 0:01:06]} 29. Kh2 {[%clk 0:01:30]}  Rd4 {[%clk 0:00:37]} 30. Qxb7 {[%clk 0:01:27]}  Bd6 {[%clk 0:00:22]} 31. Bh6 {[%clk 0:01:22]}  Be7 {[%clk 0:00:06]} 32. Qxe7 {[%clk 0:01:20]} 1-0


[Site "https://www.chess.com"]